bitfinex-derivatives/quotes_SOLF0:USTF0_20240910
["timestamp","ask_amount","ask_price","bid_price","bid_amount"]
[1725929104572,26.1429,133.91,133.87,15.2138]
[1725929104882,22.41,133.91,133.88,3.7335]
[1725929106678,29.97096142,133.92,133.88,3.7335]
[1725929106882,29.97096142,133.92,133.89,3.7333]
[1725929106883,26.23816142,133.92,133.89,3.7333]
[1725929107280,22.41,133.93,133.89,3.7333]
[1725929107582,26.1424,133.93,133.89,15.2133]
[1725929108286,3.7324,133.93,133.89,15.2133]
[1725929109376,29.92854419,133.92,133.89,11.48]
[1725929109580,22.41,133.9,133.85,11.48]
[1725929109781,26.17913769,133.9,133.85,11.48]
[1725929110086,29.91243769,133.9,133.85,15.2144]
[1725929110387,26.17913769,133.9,133.85,15.2144]
[1725929110778,37.65913769,133.9,133.84,15.6608]
[1725929110975,37.65913769,133.9,133.84,14.2858]
[1725929111187,3.7335,133.89,133.84,14.2858]
[1725929111584,26.17913769,133.9,133.85,11.48]
[1725929111883,33.89,133.92,133.87,11.48]
[1725929112483,22.41,133.92,133.88,15.2135]
[1725929112682,22.41,133.92,133.89,11.48]
[1725929112983,3.7324,133.93,133.89,11.48]
[1725929113289,22.41,133.94,133.89,11.48]
[1725929115291,3.7323,133.93,133.89,11.48]
[1725929117585,3.7323,133.93,133.89,15.2134]
[1725929119088,22.41,133.94,133.88,15.2136]
[1725929119089,3.7326,133.92,133.88,15.2136]
[1725929120093,22.41,133.93,133.88,11.48]
[1725929121101,26.1425,133.93,133.89,3.7334]
[1725929127296,26.1425,133.93,133.9,11.48]
[1725929129400,3.7329,133.91,133.9,11.48]
[1725929129600,22.41,133.93,133.9,11.48]
[1725929130397,26.1424,133.93,133.9,11.48]
[1725929132501,3.7321,133.94,133.9,15.213]
[1725929132706,35.1802,133.96,133.91,11.48]
[1725929134108,3.7319,133.95,133.91,15.2129]
[1725929135208,3.732,133.94,133.91,11.48]
[1725929137118,3.7319,133.95,133.91,15.2129]
[1725929138115,33.89,133.96,133.9,3.80909981]
[1725929138318,22.41,133.9,133.84,4.087]
[1725929138614,22.41,133.88,133.84,14.2858]
[1725929139011,22.41,133.88,133.84,18.0205]
[1725929139316,22.41,133.88,133.84,14.2858]
[1725929139511,22.41,133.88,133.84,12.8722]
[1725929140012,26.1438,133.88,133.84,12.8722]
[1725929140410,33.89,133.86,133.83,12.0]
[1725929140813,3.66566628,133.85,133.83,12.0]
[1725929141115,3.7348,133.84,133.83,12.0]
[1725929147107,26.1448,133.84,133.83,12.0]
[1725929147519,26.07566628,133.85,133.83,12.0]
[1725929147820,22.41,133.85,133.83,12.0]
[1725929148017,33.89,133.84,133.83,12.0]
[1725929148215,26.1448,133.84,133.83,12.0]
[1725929148419,11.48,133.85,133.83,12.0]
[1725929148815,3.7348,133.84,133.83,12.0]
[1725929152418,18.98178589,133.85,133.83,12.0]
[1725929155118,3.7348,133.84,133.83,12.0]
[1725929158530,41.39188589,133.85,133.83,12.0]
[1725929158721,29.91188589,133.85,133.83,12.0]
[1725929159024,7.50188589,133.85,133.83,12.0]
[1725929161030,37.6248,133.84,133.83,12.0]
[1725929166728,3.76718589,133.85,133.83,12.0]
[1725929166929,22.43,133.86,133.83,12.0]
[1725929167129,22.43,133.86,133.83,23.48]
[1725929167625,26.15468027,133.86,133.83,23.48]
[1725929167830,22.43,133.88,133.83,23.48]
[1725929168033,11.48,133.89,133.83,23.48]
[1725929168229,3.68245626,133.88,133.83,27.2149]
[1725929168534,11.48,133.9,133.84,11.48]
[1725929168733,3.78596112,133.89,133.86,11.48]
[1725929168936,15.213,133.91,133.86,15.26866073]
[1725929169438,19.02108593,133.91,133.86,15.26866073]
[1725929169940,25.1036,133.96,133.87,11.48]
[1725929169941,3.7327,133.92,133.87,11.48]
[1725929170237,3.7327,133.92,133.86,3.78866073]
[1725929170238,11.48,133.95,133.9,11.48]
[1725929170430,5.00244912,133.99,133.9,11.48]
[1725929170638,11.48,133.96,133.91,11.48]
[1725929171139,15.2116,133.96,133.91,11.48]
[1725929171635,3.7318,133.95,133.91,11.48]
[1725929171837,33.91,133.96,133.9,15.22794253]
[1725929173036,11.48,133.93,133.9,3.74794253]
[1725929173343,3.72105453,133.92,133.88,3.7964914]
[1725929174139,7.45365453,133.92,133.88,3.7964914]
[1725929174335,11.48,133.91,133.88,3.7964914]
[1725929174536,3.79275691,133.9,133.88,3.7964914]
[1725929175940,11.48,133.91,133.88,3.7964914]
[1725929176335,18.87132233,133.91,133.88,3.7964914]
[1725929177133,3.7332,133.9,133.88,3.7964914]
[1725929177337,3.7332,133.9,133.87,12.0]
[1725929178040,11.48,133.89,133.87,12.0]
[1725929178444,15.2136,133.89,133.87,12.0]
[1725929178746,3.65822233,133.91,133.87,12.0]
[1725929178937,11.48,133.92,133.87,23.48]
[1725929179137,11.48,133.93,133.88,11.48]
[1725929180143,11.48,133.93,133.87,12.0]
[1725929180336,3.7326,133.92,133.87,27.2139]
[1725929180538,33.91,133.92,133.87,12.0]
[1725929181137,7.5291258,133.91,133.87,12.0]
[1725929181339,11.48,133.9,133.87,12.0]
[1725929181939,19.0419224,133.9,133.87,12.0]
[1725929183045,3.7329,133.91,133.87,12.0]
[1725929183239,7.46365907,133.91,133.87,12.0]
[1725929183446,3.7329,133.91,133.87,15.7339]
[1725929185147,11.48,133.93,133.88,11.48]
[1725929186148,3.7325,133.93,133.88,3.7336]
[1725929186450,3.7325,133.93,133.87,12.0]
[1725929187650,3.7325,133.93,133.89,3.7334]
[1725929188144,3.7326,133.92,133.88,3.7336]
[1725929191347,3.7324,133.93,133.89,3.7333]
[1725929192955,5.00244912,133.99,133.87,12.0]
[1725929192956,22.43,133.97,133.87,12.0]
[1725929193444,3.7326,133.92,133.88,3.7336]
[1725929193641,29.92379945,133.92,133.88,3.7336]
[1725929193842,17.94,133.96,133.87,12.0]
[1725929194150,17.94,133.96,133.89,3.7333]
[1725929194151,3.7324,133.93,133.89,3.7333]
[1725929194550,22.43,133.95,133.87,12.0]
[1725929194955,3.7322,133.94,133.89,3.7332]
[1725929195149,22.43,133.97,133.91,12.0]
[1725929195745,22.43,133.97,133.92,1.3999]
[1725929195951,3.7316,133.96,133.92,1.3999]
[1725929197151,26.1613,133.97,133.92,5.1324]
[1725929197355,26.1613,133.97,133.92,1.3999]
[1725929197760,22.43,133.97,133.92,1.3999]
[1725929197960,168.19417424,133.98,133.92,1.3999]
[1725929198161,168.19417424,133.98,133.92,2.8003]
[1725929198666,168.19417424,133.98,133.93,3.7321]
[1725929199161,142.03307424,133.98,133.94,3.7319]
[1725929199865,142.03307424,133.98,133.94,7.46602528]
[1725929200461,142.03307424,133.98,133.94,3.7319]
[1725929200861,3.72514912,133.99,133.95,3.7317]
[1725929201055,3.72514912,133.99,133.96,12.0]
[1725929201761,3.7306,134.0,133.96,12.0]
[1725929202271,3.75662288,134.01,133.96,12.0]
[1725929203057,3.75662288,134.01,133.97,3.7312]
[1725929203058,7.48672288,134.01,133.97,3.7312]
[1725929203269,3.7301,134.01,133.97,3.7312]
[1725929203567,3.73459756,134.02,133.97,5.02]
[1725929203768,41.7006,134.05,133.97,5.02]
[1725929203965,3.7296,134.03,133.97,5.02]
[1725929204160,41.7006,134.05,133.97,1.2888]
[1725929204161,3.65321589,134.02,133.97,1.2888]
[1725929204358,41.7006,134.05,133.97,1.2888]
[1725929204560,3.73,134.02,133.97,5.0199]
[1725929204758,7.42335891,134.02,133.97,5.0199]
[1725929206174,3.7296,134.03,133.98,3.7309]
[1725929207378,3.7298,134.02,133.98,3.7309]
[1725929207676,3.7298,134.02,133.97,6.4011]
[1725929208078,3.7298,134.02,133.98,15.2009]
[1725929210071,3.7298,134.02,134.01,12.0]
[1725929212167,15.1997,134.03,134.01,12.0]
[1725929214377,3.7298,134.02,134.01,12.0]
[1725929214773,7.49006019,134.02,134.01,12.0]
[1725929214974,3.7298,134.02,134.01,12.0]
[1725929215374,18.99596319,134.03,134.01,12.0]
[1725929216078,18.99596319,134.03,134.02,12.0]
[1725929216781,15.1995,134.03,134.02,12.0]
[1725929216979,16.31911241,134.03,134.02,12.0]
[1725929217174,15.1995,134.03,134.02,12.0]
[1725929217369,18.88521287,134.03,134.02,12.0]
[1725929219174,7.41521287,134.03,134.02,12.0]
[1725929219370,18.88521287,134.03,134.02,12.0]
[1725929221884,20.00473478,134.03,134.02,12.0]
[1725929222383,42.43473478,134.03,134.02,12.0]
[1725929223382,42.4346695,134.03,134.02,12.0]
[1725929223583,3.731,133.98,133.95,11.47]
[1725929224081,7.50625804,133.99,133.95,11.47]
[1725929225483,7.50625804,133.99,133.94,7.53283493]
[1725929225694,7.50625804,133.99,133.95,11.47]
[1725929227084,3.7305,134.0,133.95,15.2017]
[1725929227281,3.7305,134.0,133.94,3.80093493]
[1725929227282,3.71369218,134.01,133.97,11.47]
[1725929227487,11.47,134.03,133.97,11.47]
[1725929227679,11.47,134.03,133.98,11.47]
[1725929227886,3.6502294,134.02,133.98,11.47]
[1725929228280,29.8102294,134.02,133.98,11.47]
[1725929230291,3.7301,134.01,133.98,11.47]
[1725929231492,26.0802294,134.02,133.98,11.47]
[1725929231493,3.7299,134.02,133.98,11.47]
[1725929231689,3.7299,134.02,133.98,15.2009]
[1725929233992,3.7296,134.03,133.99,3.7306]
[1725929234195,1.12089066,134.02,134.0,3.77891675]
[1725929234592,7.47435651,134.04,134.0,7.50921675]
[1725929234792,1.12109591,134.03,134.0,7.50921675]
[1725929235790,1.12126335,134.02,134.0,7.50921675]
[1725929236001,3.7294,134.04,134.0,7.50921675]
[1725929236196,1.1212464,134.03,134.0,7.50921675]
[1725929236396,1.1212464,134.03,133.99,17.8696]
[1725929237202,3.7296,134.03,133.99,17.8696]
[1725929237591,3.7296,134.03,133.99,14.1391]
[1725929238291,3.7296,134.03,133.99,17.8697]
[1725929241602,3.7296,134.03,133.99,14.1391]
[1725929243105,37.68003632,134.05,133.99,14.1391]
[1725929243106,3.7293,134.04,133.99,14.1391]
[1725929243604,3.7296,134.03,133.99,14.1391]
[1725929244206,3.7296,134.03,133.99,17.8696]
[1725929244402,15.25003632,134.05,134.0,15.28977041]
[1725929244805,11.47,134.05,134.0,15.28977041]
[1725929245002,3.7293,134.04,134.0,19.01997041]
[1725929245399,3.6660393,134.06,134.02,11.47]
[1725929246109,7.3948393,134.06,134.02,11.47]
[1725929248005,3.7288,134.06,134.02,11.47]
[1725929248608,7.4714267,134.06,134.02,11.47]
[1725929251211,3.7288,134.06,134.02,15.1998]
[1725929253306,3.729,134.05,134.02,11.47]
[1725929253613,22.43,134.07,134.01,12.8039]
[1725929253614,3.71799925,134.06,134.01,12.8039]
[1725929254610,22.43,134.05,134.01,1.3339]
[1725929254813,3.7952399,134.04,134.01,1.3339]
[1725929255607,3.7297,134.03,134.01,1.3339]
[1725929256616,3.7298,134.02,134.0,3.81977041]
[1725929257113,3.7298,134.02,133.99,14.1391]
[1725929257711,3.7298,134.02,134.0,3.75969587]
[1725929258621,3.7298,134.02,133.99,14.1391]
[1725929259116,3.7301,134.01,133.99,14.1391]
[1725929259322,22.43,134.03,133.99,14.1391]
[1725929259323,26.24521291,134.02,133.99,2.6691]
[1725929259723,22.43,134.02,133.99,2.6691]
[1725929260316,26.15751116,134.02,133.99,6.41415151]
[1725929260713,3.7304,134.0,133.99,2.6691]
[1725929260909,7.37655378,134.0,133.99,2.6691]
[1725929261821,7.37655378,134.0,133.94,1.3381]
[1725929261822,22.43,134.0,133.94,1.3381]
[1725929262030,26.17542471,133.99,133.94,16.56546707]
[1725929262223,3.7311,133.98,133.94,12.8081]
[1725929262424,33.9,133.99,133.94,12.8081]
[1725929262820,3.77267522,133.98,133.94,12.8081]
[1725929263024,7.50367522,133.98,133.94,12.8081]
[1725929263420,3.77267522,133.98,133.94,12.8081]
[1725929263615,33.9,134.01,133.95,11.47]
[1725929263819,3.76184922,134.0,133.95,11.47]
[1725929264718,22.43,134.0,133.95,11.47]
[1725929264915,3.76931543,133.99,133.95,11.47]
[1725929265121,7.50011543,133.99,133.95,11.47]
[1725929266126,3.76931543,133.99,133.95,11.47]
[1725929267233,3.76931543,133.99,133.95,15.2017]
[1725929267432,3.76931543,133.99,133.95,11.47]
[1725929267931,3.76931543,133.99,133.94,12.8081]
[1725929267932,3.7307,133.99,133.94,12.8081]
[1725929268229,22.43,133.97,133.93,6.39263582]
[1725929269230,26.1613,133.97,133.93,6.39263582]
[1725929269535,3.79563443,133.96,133.93,6.39263582]
[1725929270328,22.43,133.97,133.93,10.12483582]
[1725929270531,37.631,133.98,133.93,21.59483582]
[1725929270938,3.67131593,133.97,133.93,21.59483582]
[1725929275748,3.67131593,133.97,133.93,10.12483582]
[1725929275948,29.83251593,133.97,133.93,10.12483582]
[1725929281251,149.72748614,134.08,133.95,3.7317]
[1725929281252,22.43,134.07,133.95,3.7317]
[1725929281445,33.9,133.99,133.95,3.7317]
[1725929281751,3.7824771,133.98,133.95,3.7317]
[1725929281954,3.7824771,133.98,133.93,2.7383]
[1725929281955,11.47,133.96,133.93,2.7383]
[1725929282143,141.93011327,134.08,133.9,3.70929683]
[1725929282144,33.9,133.95,133.9,3.70929683]
[1725929282340,33.9,133.93,133.89,2.6424]
[1725929282546,11.47,133.91,133.89,2.6424]
[1725929282753,11.47,133.91,133.86,3.7341]
[1725929283757,15.27525911,133.91,133.86,3.7341]
[1725929284147,19.00815911,133.91,133.86,3.7341]
[1725929284548,15.27525911,133.91,133.85,18.92350507]
[1725929284744,11.47,133.9,133.85,3.71900507]
[1725929285052,11.47,133.89,133.83,3.7348]
[1725929285250,11.47,133.89,133.83,7.38440354]
[1725929286140,3.734,133.88,133.83,3.64960354]
[1725929286754,3.734,133.88,133.83,7.38470354]
[1725929287546,11.47,133.89,133.83,3.64960354]
[1725929287547,33.9,133.89,133.83,3.64960354]
[1725929288052,11.47,133.89,133.84,11.47]
[1725929288249,3.80525911,133.91,133.85,11.47]
[1725929288449,3.80525911,133.91,133.79,2.7376]
[1725929288450,11.47,133.9,133.84,11.47]
[1725929288753,3.7336,133.89,133.84,15.200196]
[1725929288950,3.77764065,133.88,133.84,15.200196]
[1725929289549,7.51144065,133.88,133.84,11.47]
[1725929289756,18.98144065,133.88,133.83,3.7349]
[1725929290259,3.7342,133.87,133.83,3.81275717]
[1725929295650,41.41144065,133.88,133.83,3.81275717]
[1725929296362,18.98144065,133.88,133.83,7.54785717]
[1725929296854,3.7342,133.87,133.83,3.81275717]
[1725929297050,3.7342,133.87,133.81,11.47]
[1725929297051,11.47,133.87,133.81,11.47]
[1725929297255,33.9,133.87,133.79,2.7376]
[1725929297459,15.2047,133.85,133.8,15.2059]
[1725929298050,15.205,133.84,133.79,6.4737]
[1725929298251,11.47,133.84,133.79,6.4737]
[1725929298461,11.47,133.84,133.79,2.7376]
[1725929298658,3.7354,133.82,133.79,2.7376]
[1725929299168,22.43,133.87,133.79,2.7376]
[1725929299169,11.47,133.83,133.79,2.7376]
[1725929299465,11.47,133.82,133.76,15.27003159]
[1725929299665,11.47,133.82,133.77,2.7095]
[1725929299858,11.47,133.82,133.77,6.486871]
[1725929300053,3.7359,133.81,133.77,10.223371]
[1725929300463,3.7356,133.82,133.77,17.956871]
[1725929300662,3.7356,133.82,133.78,12.8555]
[1725929300863,11.47,133.83,133.78,12.8555]
[1725929301073,22.43,133.87,133.78,12.8555]
[1725929301366,11.47,133.85,133.8,11.47]
[1725929301674,3.7346,133.85,133.81,15.2054]
[1725929306264,33.9,133.87,133.81,11.47]
[1725929306265,11.47,133.87,133.81,11.47]
[1725929306769,11.47,133.87,133.82,2.6081]
[1725929308463,3.7344,133.86,133.82,6.3433]
[1725929309061,3.7341,133.87,133.83,3.7349]
[1725929309265,3.77764065,133.88,133.83,3.7349]
[1725929309571,33.9,133.88,133.82,2.6081]
[1725929309772,11.47,133.86,133.82,2.6081]
[1725929310263,3.7347,133.85,133.82,2.6081]
[1725929311471,11.47,133.85,133.78,12.8555]
[1725929311667,11.47,133.84,133.78,15.5451]
[1725929312067,3.7353,133.83,133.79,3.736]
[1725929314668,3.7356,133.82,133.78,19.2815]
[1725929315069,3.7356,133.82,133.78,15.5451]
[1725929316169,3.7356,133.82,133.79,3.7361]
[1725929316473,3.7356,133.82,133.78,15.5451]
[1725929316671,3.7356,133.82,133.79,3.7362]
[1725929321473,3.7352,133.83,133.8,3.7359]
[1725929321668,33.9,133.84,133.79,11.47]
[1725929321973,3.7355,133.82,133.79,3.7361]
[1725929323773,3.7355,133.82,133.78,7.8115]
[1725929330391,33.9,133.85,133.79,11.47]
[1725929331492,37.62430544,133.85,133.79,11.47]
[1725929332287,3.7353,133.83,133.8,3.7358]
[1725929333487,3.7355,133.82,133.79,11.47]
[1725929333683,33.9,133.84,133.78,4.0751]
[1725929334080,11.47,133.84,133.79,11.47]
[1725929334687,11.47,133.84,133.8,3.7358]
[1725929336190,3.7351,133.83,133.8,3.7358]
[1725929342088,22.43,133.9,133.82,11.47]
[1725929342295,11.47,133.88,133.82,11.47]
[1725929342996,3.7342,133.87,133.83,3.7349]
[1725929343895,15.2042,133.87,133.83,3.7349]
[1725929346194,11.47,133.87,133.83,3.7349]
[1725929346499,15.2038,133.88,133.84,3.7347]
[1725929347995,37.6338,133.88,133.84,3.7347]
[1725929351191,33.9,133.88,133.85,3.7344]
[1725929351597,11.47,133.88,133.85,3.7344]
[1725929353699,37.6338,133.88,133.84,3.7348]
[1725929353905,33.9,133.88,133.83,2.7417]
[1725929354299,37.6338,133.88,133.84,3.7347]
[1725929355408,37.6338,133.88,133.84,7.45677264]
[1725929355602,15.2038,133.88,133.84,7.45677264]
[1725929355806,3.7338,133.88,133.84,18.92677264]
[1725929356199,37.64523271,133.9,133.84,15.19207264]
[1725929356406,22.43,133.9,133.85,11.47]
[1725929356605,142.10964317,133.91,133.86,11.47]
[1725929356803,142.10964317,133.91,133.84,3.72207264]
[1725929356804,142.10964317,133.91,133.88,15.2035]
[1725929357106,3.7327,133.92,133.88,15.2035]
[1725929357407,33.9,133.93,133.89,3.65231901]
[1725929357605,37.6325,133.93,133.89,7.38551901]
[1725929358008,15.2025,133.93,133.89,7.38551901]
[1725929358708,15.2025,133.93,133.89,3.7332]
[1725929358904,22.43,133.97,133.89,15.25193188]
[1725929359100,33.9,133.97,133.9,11.47]
[1725929359309,33.9,133.97,133.91,15.17984172]
[1725929359507,33.9,133.97,133.92,3.7324]
[1725929359508,37.6313,133.97,133.92,3.7324]
[1725929360105,15.2013,133.97,133.92,3.7324]
[1725929360305,3.7313,133.97,133.93,3.7323]
[1725929360507,37.631,133.98,133.93,3.7323]
[1725929361018,33.9,133.96,133.83,1.394]
[1725929361198,11.47,133.95,133.89,11.47]
[1725929361906,15.2018,133.95,133.9,7.47010714]
[1725929362209,3.7321,133.94,133.9,7.47010714]
[1725929365000,3.7325,133.93,133.9,3.73720714]
[1725929365407,11.47,133.95,133.9,3.73720714]
[1725929365608,3.7321,133.94,133.9,3.733]
[1725929366407,3.7321,133.94,133.91,3.70584242]
[1725929369510,3.7321,133.94,133.9,3.733]
[1725929369911,3.7321,133.94,133.9,7.47506162]
[1725929370512,11.47,133.92,133.84,2.8214]
[1725929370716,11.47,133.91,133.86,11.47]
[1725929371229,7.43174467,133.91,133.87,3.7338]
[1725929372621,26.25234735,133.98,133.89,3.7334]
[1725929372920,11.47,133.94,133.88,11.47]
[1725929373222,11.47,133.94,133.88,15.2036]
[1725929374223,26.25234735,133.98,133.87,11.47]
[1725929374521,11.47,133.94,133.88,11.47]
[1725929375427,11.47,133.94,133.9,3.7329]
[1725929375818,11.47,133.93,133.87,11.47]
[1725929376339,11.47,133.91,133.85,11.47]
[1725929376541,15.21420734,133.91,133.85,11.47]
[1725929376836,11.47,133.91,133.85,11.47]
[1725929377029,15.1473665,133.91,133.85,11.47]
[1725929377933,11.47,133.91,133.85,11.47]
[1725929378837,18.92656965,133.91,133.85,11.47]
[1725929380332,18.92656965,133.91,133.86,3.7342]
[1725929380933,11.47,133.9,133.85,3.7345]
[1725929381341,11.47,133.9,133.86,3.74990368]
[1725929381638,15.2032,133.9,133.86,3.74990368]
[1725929382032,3.7332,133.9,133.86,15.2042]
[1725929382235,3.7332,133.9,133.86,18.88126463]
[1725929387433,3.7332,133.9,133.87,3.7339]
[1725929389640,18.8897765,133.91,133.86,15.14706463]
[1725929389839,3.733,133.91,133.87,11.47]
[1725929390249,3.7327,133.92,133.88,3.7335]
[1725929390543,15.24716733,133.93,133.88,11.47]
[1725929390544,11.47,133.93,133.88,11.47]
[1725929390752,15.11494967,133.94,133.88,11.47]
[1725929391045,11.47,133.94,133.9,11.47]
[1725929391847,11.47,133.94,133.9,15.21691414]
[1725929392248,15.2021,133.94,133.9,18.94991414]
[1725929392947,3.7324,133.93,133.89,3.7333]
[1725929394748,15.2024,133.93,133.89,3.7333]
[1725929394945,15.2024,133.93,133.88,15.2036]
[1725929396150,3.80555305,133.95,133.9,11.47]
[1725929396347,3.75195588,133.95,133.91,11.47]
[1725929396544,11.47,133.96,133.91,15.27983914]
[1725929396743,15.2017,133.96,133.91,19.01253914]
[1725929397146,18.87149899,133.96,133.91,19.01253914]
[1725929398649,3.7318,133.95,133.91,19.01253914]
[1725929400553,3.7318,133.95,133.91,15.2027]
[1725929401347,3.7321,133.94,133.9,3.7331]
[1725929401554,33.9,133.95,133.89,11.47]
[1725929401954,3.7323,133.93,133.89,15.2032]
[1725929402253,11.47,133.95,133.89,11.47]
[1725929403145,3.7321,133.94,133.89,11.47]
[1725929403347,3.7321,133.94,133.91,11.47]
[1725929403658,18.87139899,133.96,133.92,3.7325]
[1725929403842,33.9,133.98,133.92,15.2025]
[1725929404047,3.79910555,133.97,133.92,11.47]
[1725929404753,7.53050555,133.97,133.93,3.7323]
[1725929406746,3.7315,133.96,133.92,15.2025]
[1725929410758,3.7318,133.95,133.91,20.32970301]
[1725929414761,12.76854266,133.97,133.92,11.47]
[1725929414960,26.20780582,133.98,133.92,11.47]
[1725929415458,22.43,134.0,133.94,11.47]
[1725929415653,33.9,134.0,133.95,11.47]
[1725929415859,3.7309,133.98,133.94,3.7319]
[1725929416260,3.75092815,133.98,133.93,11.47]
[1725929416447,11.47,133.96,133.91,5.12690301]
[1725929417152,3.7319,133.95,133.91,8.85960301]
[1725929417372,11.47,133.96,133.91,1.3573]
[1725929418248,11.47,133.96,133.91,5.00994948]
[1725929418459,11.47,133.96,133.91,1.3573]
[1725929418660,11.47,133.96,133.9,14.1306]
[1725929418856,33.9,133.96,133.9,14.1306]
[1725929419864,11.47,133.95,133.9,14.1306]
[1725929421454,3.732,133.95,133.91,3.7327]
[1725929421656,3.732,133.95,133.92,3.7048189]
[1725929421856,33.9,133.96,133.92,3.7048189]
[1725929422359,3.7318,133.95,133.92,3.7048189]
[1725929422758,11.47,133.96,133.92,3.7048189]
[1725929422958,3.7316,133.96,133.92,3.7325]
[1725929423270,3.7316,133.96,133.93,15.23044905]
[1725929424062,15.2013,133.97,133.93,18.96274905]
[1725929424459,3.7313,133.97,133.93,18.96274905]
[1725929424661,3.731,133.98,133.94,15.202]
[1725929424868,7.45607453,133.98,133.94,15.202]
[1725929425062,3.731,133.98,133.94,18.88115049]
[1725929425460,7.48445036,133.98,133.94,18.88115049]
[1725929425861,3.731,133.98,133.94,18.88115049]
[1725929426361,7.54493569,133.98,133.94,11.47]
[1725929426758,3.7314,133.97,133.93,15.26265382]
[1725929426958,3.7314,133.97,133.93,11.47]
[1725929427564,3.7314,133.97,133.93,15.24025184]
[1725929430068,3.731,133.98,133.94,15.202]
[1725929430866,22.43,133.99,133.94,18.98195936]
[1725929430867,26.1608,133.99,133.94,18.98195936]
[1725929431770,3.731,133.98,133.94,18.98195936]
[1725929431974,22.43,133.99,133.95,15.2017]
[1725929432167,22.43,134.04,133.95,14.227]
[1725929432374,3.7305,134.0,133.96,11.47]
[1725929432664,3.689427,133.99,133.95,17.9587]
[1725929432865,22.43,134.0,133.95,17.9587]
[1725929433273,3.72227832,133.99,133.95,17.9587]
[1725929433667,22.43,134.0,133.95,17.9587]
[1725929434167,3.7308,133.99,133.95,17.9587]
[1725929436465,7.44876754,134.0,133.96,3.7315]
[1725929436671,3.71826754,134.0,133.96,3.7315]
[1725929437170,3.7305,134.0,133.96,3.7315]
[1725929439167,3.7302,134.01,133.97,15.2011]
[1725929439878,3.72172343,134.02,133.98,11.47]
[1725929440076,22.43,134.03,133.98,11.47]
[1725929440279,7.37596031,134.02,133.98,15.2008]
[1725929441267,3.64596031,134.02,133.98,15.2008]
[1725929441469,33.9,134.01,133.97,11.47]
[1725929441769,3.7305,134.0,133.96,1.3095]
[1725929442274,3.7305,134.0,133.96,5.0408]
[1725929442877,3.7305,134.0,133.97,11.47]
[1725929445582,3.7301,134.01,133.97,15.201]
[1725929445774,3.7301,134.01,133.98,11.47]
[1725929446477,3.73,134.02,133.98,15.2007]
[1725929447584,33.9,134.02,133.96,12.7795]
[1725929447984,33.9,134.01,133.96,12.7795]
[1725929448284,3.7306,133.99,133.96,12.7795]
[1725929449380,22.43,134.09,133.98,11.47]
[1725929449680,33.9,134.06,133.99,11.47]
[1725929449880,11.47,134.04,133.99,11.47]
[1725929450185,3.7297,134.03,133.99,15.2005]
[1725929450484,15.1993,134.04,134.0,3.7301]
[1725929450681,3.72620204,134.05,133.99,11.47]
[1725929450985,3.66054217,134.05,133.99,11.47]
[1725929451389,3.7292,134.05,134.01,3.7299]
[1725929451580,7.41287474,134.05,134.01,7.43185693]
[1725929451781,7.41287474,134.05,134.01,3.7299]
[1725929454480,7.41287474,134.05,134.01,15.1999]
[1725929455392,3.7288,134.06,134.01,15.22867186]